bitfinex/quotes_ETHUSD_20251226
["timestamp","ask_amount","ask_price","bid_price","bid_amount"]
[1766736818388,3.5439,2961.6,2961.0,0.886]
[1766736819577,0.002,2961.6,2961.2,3.6341]
[1766736819994,0.002,2961.6,2961.3,3.6341]
[1766736820198,0.002,2961.6,2961.3,3.66786895]
[1766736820386,0.002,2962.0,2961.4,3.6341]
[1766736820587,0.04219551,2962.4,2961.3,4.01876815]
[1766736820588,3.58609409,2962.5,2961.7,3.6341]
[1766736820789,3.58609409,2962.5,2961.9,3.6341]
[1766736820790,0.002,2962.5,2961.9,3.6341]
[1766736821017,0.002,2962.5,2962.1,3.6341]
[1766736821211,0.002,2962.5,2962.2,0.03375869]
[1766736821404,0.002,2962.5,2962.2,3.66785869]
[1766736821907,0.002,2962.7,2962.3,3.6341]
[1766736824102,0.002,2962.7,2962.0,0.886]
[1766736824103,0.002,2962.7,2962.1,3.623]
[1766736824617,3.6739,2962.7,2962.1,3.623]
[1766736824791,0.04219266,2962.6,2962.1,3.623]
[1766736824990,0.002,2962.7,2962.4,3.623]
[1766736825191,0.002,2962.7,2962.5,0.03375527]
[1766736825391,0.002,2962.7,2962.6,0.03375413]
[1766736825606,10.322,2963.4,2962.6,3.623]
[1766736825607,3.7140827,2963.3,2962.6,3.623]
[1766736825988,0.0421827,2963.3,2962.6,3.623]
[1766736826311,3.6719,2963.2,2962.0,0.886]
[1766736826492,3.4168005,2963.3,2962.3,3.623]
[1766736826493,3.6719,2963.0,2962.3,3.623]
[1766736826694,3.6719,2963.0,2961.9,3.623]
[1766736826900,3.6719,2962.7,2961.9,4.509]
[1766736827116,3.6719,2962.5,2961.9,4.509]
[1766736827515,0.04218697,2963.0,2962.0,3.65676097]
[1766736827716,3.71408697,2963.0,2962.1,3.623]
[1766736827923,0.002,2962.6,2962.1,3.623]
[1766736828430,0.002,2962.6,2961.8,0.886]
[1766736828431,3.6739,2962.6,2961.8,0.886]
[1766736828726,3.6739,2962.6,2961.8,4.509]
[1766736829293,3.6719,2962.4,2961.8,4.509]
[1766736834037,3.6719,2962.4,2961.9,3.65676211]
[1766736835234,3.6719,2962.4,2961.3,3.623]
[1766736835235,3.6719,2962.2,2961.3,3.623]
[1766736835443,3.6719,2962.0,2961.3,3.623]
[1766736836636,3.71410264,2961.9,2961.3,3.623]
[1766736838305,3.6719,2961.9,2961.3,3.623]
[1766736839218,3.6719,2961.9,2961.4,3.623]
[1766736839449,0.04219979,2962.1,2961.4,3.623]
[1766736839744,3.6719,2962.0,2961.5,3.65676667]
[1766736839946,0.04220264,2961.9,2961.5,3.65676667]
[1766736841639,3.6719,2962.0,2961.5,3.65676667]
[1766736841835,0.04220264,2961.9,2961.5,3.65676667]
[1766736842035,0.04220264,2961.9,2961.5,3.623]
[1766736842243,0.04220264,2961.9,2961.5,3.624]
[1766736842432,3.71410264,2961.9,2961.5,0.001]
[1766736842633,3.71410264,2961.9,2961.2,3.623]
[1766736844528,0.04220264,2961.9,2961.3,3.623]
[1766736844728,0.04220121,2962.0,2961.4,0.03376781]
[1766736844928,0.04220121,2962.0,2961.4,3.623]
[1766736845337,3.6719,2962.0,2961.5,0.03376667]
[1766736845544,3.6719,2962.0,2961.5,3.623]
[1766736845832,3.6719,2962.0,2961.6,0.03376553]
[1766736846056,3.71409836,2962.2,2961.6,0.03376553]
[1766736846251,3.71409836,2962.2,2961.6,3.623]
[1766736846933,0.04219836,2962.2,2961.6,3.623]
[1766736847341,3.71409836,2962.2,2961.6,3.623]
[1766736849931,3.71609836,2962.2,2961.6,3.623]
[1766736851250,3.71609836,2962.2,2961.5,0.001]
[1766736851735,3.6739,2962.2,2961.5,0.03476667]
[1766736851936,3.6739,2962.2,2961.5,3.65776667]
[1766736852548,3.6739,2962.2,2961.5,3.624]
[1766736853867,3.6739,2962.2,2961.5,7.00065426]
[1766736854651,3.6739,2962.2,2961.5,7.88665426]
[1766736855066,3.6739,2962.2,2961.5,4.51]
[1766736858178,0.002,2962.2,2961.5,4.51]
[1766736858353,0.002,2962.2,2961.6,3.7082]
[1766736859576,3.58719836,2962.2,2961.6,3.7082]
[1766736862481,3.58719836,2962.2,2961.7,0.03376439]
[1766736863088,3.58719836,2962.2,2961.7,3.74196439]
[1766736863394,3.545,2962.2,2961.7,3.7082]
[1766736864873,0.002,2962.2,2961.7,3.7082]
[1766736866683,0.002,2962.2,2961.8,0.03376325]
[1766736867067,3.545,2962.2,2961.7,3.7082]
[1766736867280,3.545,2962.2,2961.5,0.887]
[1766736867281,3.543,2962.0,2961.5,0.887]
[1766736870009,3.543,2962.0,2961.5,4.5952]
[1766736870908,3.58719836,2962.2,2961.5,4.5952]
[1766736871118,3.58719836,2962.2,2961.6,3.74196553]
[1766736873910,3.58719836,2962.2,2961.6,3.7082]
[1766736878307,0.04419836,2962.2,2961.6,3.7082]
[1766736878508,0.002,2962.2,2961.6,3.7082]
[1766736879609,0.002,2962.2,2961.7,3.74196439]
[1766736880985,0.002,2962.6,2961.8,3.98265832]
[1766736881317,0.002,2962.6,2962.1,3.7082]
[1766736881517,0.002,2962.6,2962.3,3.7082]
[1766736881826,17.67707948,2963.5,2962.2,0.03375869]
[1766736881827,0.17614371,2965.3,2962.6,0.01338979]
[1766736882114,0.17614371,2965.3,2962.4,10.17407031]
[1766736882115,3.543,2964.4,2963.1,3.7082]
[1766736882331,3.543,2963.9,2962.9,4.44938]
[1766736882487,3.49343357,2963.9,2963.0,4.5942]
[1766736883319,0.00768751,2964.0,2963.1,3.3918]
[1766736883519,0.00768751,2964.1,2963.1,3.3918]
[1766736883688,3.98265832,2963.7,2962.8,3.3918]
[1766736883887,3.3783,2963.6,2962.9,0.886]
[1766736884623,3.3783,2963.4,2962.9,4.4185]
[1766736884792,3.3783,2963.4,2962.9,0.886]
[1766736887706,3.38598751,2963.4,2962.9,0.886]
[1766736889836,3.38598751,2963.3,2962.9,0.886]
[1766736895130,0.002,2963.4,2962.9,0.886]
[1766736895131,3.3803,2963.4,2962.9,0.886]
[1766736896116,3.3803,2963.4,2962.9,4.4185]
[1766736896339,0.002,2963.4,2962.9,4.4185]
[1766736897024,0.002,2963.4,2963.0,3.5325]
[1766736898936,0.002,2963.8,2963.1,3.5325]
[1766736899141,0.002,2963.8,2963.0,3.37495736]
[1766736899142,0.002,2963.8,2963.3,3.5325]
[1766736899442,3.3783,2964.3,2963.6,3.5325]
[1766736899737,0.00768751,2964.2,2963.7,3.5325]
[1766736900519,3.38598751,2964.2,2963.5,3.5325]
[1766736901538,3.3783,2964.5,2963.6,3.56624274]
[1766736901718,3.38598751,2964.4,2963.4,0.886]
[1766736901919,3.38598751,2964.4,2963.5,3.5325]
[1766736902121,3.38598751,2964.4,2963.6,3.5325]
[1766736903731,3.38598751,2964.4,2963.6,6.90677083]
[1766736903928,3.38598751,2964.4,2963.7,3.5325]
[1766736904655,3.3783,2964.3,2963.5,3.5325]
[1766736904843,3.3783,2964.3,2963.4,0.886]
[1766736904844,3.3783,2964.1,2963.4,0.886]
[1766736905045,3.3783,2963.9,2963.3,3.84]
[1766736905924,3.3783,2963.9,2963.3,7.21461425]
[1766736906125,3.3783,2964.1,2963.4,3.5325]
[1766736906330,3.3783,2964.1,2963.5,3.56624388]
[1766736908250,3.38598751,2964.1,2963.5,3.5325]
[1766736908833,3.38798751,2964.4,2963.5,3.5325]
[1766736909034,3.38798751,2964.4,2963.6,3.56624274]
[1766736909265,3.3783,2964.3,2963.6,3.5325]
[1766736909564,3.38598751,2964.2,2963.3,7.3725]
[1766736910456,3.38598751,2964.2,2963.4,3.56624502]
[1766736911369,0.00968751,2964.4,2963.5,3.5325]
[1766736911663,0.00968751,2964.4,2963.7,3.5325]
[1766736911866,0.00968751,2964.4,2963.9,3.5325]
[1766736911867,0.002,2964.4,2963.9,3.5325]
[1766736912030,0.002,2964.4,2964.0,3.56623819]
[1766736912428,0.887,2965.0,2964.0,3.56623819]
[1766736912429,3.3803,2965.0,2964.1,3.5325]
[1766736912657,3.3803,2965.0,2964.3,3.5325]
[1766736912854,3.3803,2965.0,2964.5,3.5325]
[1766736913054,3.3783,2965.5,2964.7,3.5325]
[1766736913254,3.3783,2965.5,2964.8,3.5325]
[1766736913455,3.3783,2965.5,2964.8,3.56622908]
[1766736913932,3.4881,2965.4,2964.8,3.5325]
[1766736914136,3.4881,2965.4,2964.2,8.00996748]
[1766736914346,0.002,2964.4,2964.3,3.7514]
[1766736914730,3.4881,2965.1,2964.3,7.12484523]
[1766736915129,3.4881,2965.1,2964.3,3.7514]
[1766736915757,3.4881,2965.1,2964.3,7.12487548]
[1766736915934,3.4881,2965.1,2964.3,7.12484436]
[1766736916138,3.4881,2965.1,2964.4,0.03373363]
[1766736916358,3.4881,2965.1,2964.3,7.12484436]
[1766736916740,3.4881,2965.1,2964.3,3.7514]
[1766736917966,3.37254232,2965.2,2964.2,0.885]
[1766736918577,3.37212569,2965.5,2964.2,8.09856427]
[1766736918738,3.3722806,2965.4,2964.2,8.09856427]
[1766736918932,3.77020579,2965.5,2964.3,0.03373477]
[1766736919135,0.002,2965.6,2964.3,0.49164149]
[1766736919471,0.002,2965.6,2964.7,3.97870418]
[1766736919636,0.002,2965.6,2964.8,0.91872908]
[1766736919841,0.002,2965.6,2964.8,0.885]
[1766736920140,0.002,2965.6,2964.8,4.25780782]
[1766736921067,0.002,2965.6,2964.8,7.66444569]
[1766736921270,0.002,2965.5,2964.8,7.63071661]
[1766736921567,0.002,2965.5,2964.9,0.03372795]
[1766736922046,0.002,2965.5,2964.9,3.40643292]
[1766736923159,0.002,2965.5,2964.9,0.03372795]
[1766736923338,0.002,2965.5,2964.8,0.885]
[1766736923534,0.002,2965.5,2964.4,3.37329979]
[1766736923764,0.002,2965.5,2964.4,4.25829979]
[1766736924072,0.002,2965.5,2964.4,0.885]
[1766736924239,0.002,2965.5,2964.4,0.79121526]
[1766736924569,0.002,2965.5,2964.5,0.0337325]
[1766736924736,0.67479978,2965.4,2964.5,0.0337325]
[1766736925241,0.002,2965.5,2964.4,4.1645753]
[1766736925562,0.002,2965.5,2964.4,0.79121526]
[1766736928685,0.002,2965.5,2964.5,3.84]
[1766736928966,0.002,2965.5,2964.5,7.24698262]
[1766736929157,0.002,2965.5,2964.5,10.58650024]
[1766736929356,0.002,2965.5,2964.6,16.634057]
[1766736929662,0.002,2965.5,2964.7,0.03373022]
[1766736929866,0.002,2965.5,2964.6,19.51204]
[1766736930063,0.002,2965.5,2964.6,18.51204]
[1766736930566,0.002,2965.5,2964.5,7.21325012]
[1766736930766,0.002,2965.5,2964.6,3.382326]
[1766736931664,0.002,2965.5,2964.6,3.84]
[1766736931872,0.002,2965.5,2964.6,7.21311067]
[1766736933144,0.002,2965.5,2964.6,10.58624701]
[1766736933344,0.002,2965.5,2964.7,30.03373022]
[1766736933541,0.002,2965.5,2964.9,18.177614]
[1766736933746,0.002,2965.5,2965.0,0.03372681]
[1766736934046,0.002,2965.5,2964.9,0.03372795]
[1766736934259,0.002,2965.5,2964.8,3.37290879]
[1766736935870,0.002,2965.5,2964.8,2.507]
[1766736936049,0.002,2965.5,2964.8,2.497]
[1766736936377,0.002,2965.5,2964.6,7.21309105]
[1766736937164,0.002,2965.5,2964.6,10.58622739]
[1766736937361,0.002,2965.5,2964.7,3.84]
[1766736938286,0.002,2965.5,2964.7,7.21299992]
[1766736939878,0.002,2965.5,2964.8,3.84]
[1766736941262,0.002,2965.5,2964.5,7.21324228]
[1766736941674,0.002,2965.5,2964.5,3.84]
[1766736942380,0.002,2965.5,2964.5,7.21323855]
[1766736943481,0.002,2965.5,2964.6,0.03373136]
[1766736944262,0.002,2965.5,2964.6,3.40685598]
[1766736944461,0.002,2965.5,2964.6,0.03373136]
[1766736945396,0.002,2965.5,2964.5,3.84]
[1766736946167,0.002,2965.5,2964.4,4.16556759]
[1766736946566,0.002,2965.5,2964.5,0.0337325]
[1766736947795,0.002,2965.5,2964.4,7.5389315]
[1766736947968,0.002,2965.5,2964.4,4.16556759]
[1766736948902,0.002,2965.5,2964.5,7.21323918]
[1766736951602,0.002,2965.5,2964.5,3.84]
[1766736951804,0.002,2965.5,2964.5,7.2132323]
[1766736952191,0.002,2965.5,2964.6,3.84]
[1766736955503,0.002,2965.5,2964.6,7.21310674]
[1766736955713,0.002,2965.5,2964.6,3.84]
[1766736956776,0.002,2965.5,2964.6,7.21311556]
[1766736956976,0.002,2965.5,2964.6,3.84]
[1766736957199,0.002,2965.5,2964.6,7.21312593]
[1766736957383,0.002,2965.5,2964.7,0.03373022]
[1766736958182,0.002,2965.5,2964.5,3.84]
[1766736958808,3.97627101,2965.5,2964.5,3.84]
[1766736959015,3.97627101,2965.5,2964.6,0.03373136]
[1766736959314,0.002,2965.5,2964.6,0.03373136]
[1766736960212,0.67677704,2965.5,2964.6,0.03373136]
[1766736960916,0.67677704,2965.5,2964.5,3.84]
[1766736961101,0.67677704,2965.5,2964.6,0.03373136]
[1766736961302,0.67677704,2965.5,2964.5,3.84]
[1766736961618,0.67677704,2965.5,2964.6,0.03373136]
[1766736961796,0.67677704,2965.5,2964.5,3.84]
[1766736962210,0.67677704,2965.5,2964.5,7.21324393]
[1766736962409,4.04890929,2965.5,2964.6,0.03373136]
[1766736963818,4.04890929,2965.5,2964.6,3.87373136]
[1766736966030,0.002,2965.5,2964.6,7.24684361]
[1766736966194,0.002,2965.5,2964.6,7.21311225]
[1766736966386,0.002,2965.5,2964.7,0.03373022]
[1766736967031,0.002,2965.5,2964.7,3.40671212]
[1766736967221,0.002,2965.5,2964.7,0.03373022]
[1766736969325,3.97627101,2965.5,2964.6,3.84]
[1766736969495,3.97427101,2965.3,2964.6,3.84]
[1766736969694,3.97427101,2965.3,2964.5,3.84]
[1766736969894,3.97627101,2965.5,2964.6,0.03373136]
[1766736970114,0.3978271,2965.4,2964.6,0.03373136]
[1766736971017,0.002,2965.5,2964.6,3.37310942]
[1766736971320,0.002,2965.5,2964.5,3.84]
[1766736972719,3.97427101,2965.4,2964.5,3.84]
[1766736973122,7.34674686,2965.2,2964.5,3.84]
[1766736973423,3.97427101,2964.6,2963.9,3.84]
[1766736973615,3.97427101,2964.4,2963.6,7.21420129]
[1766736973816,1.61967469,2965.1,2963.6,7.21420129]
[1766736973817,3.97427101,2964.6,2963.6,7.21420129]
[1766736974017,4.37169811,2964.6,2963.6,7.21420129]
[1766736975613,0.3974271,2964.6,2963.6,7.21420129]
[1766736975926,3.97427101,2964.8,2963.6,10.58847582]
[1766736976431,3.37285806,2964.9,2963.6,14.56274683]
[1766736976796,3.37285806,2964.9,2963.6,11.1884723]
[1766736976997,4.60680891,2964.9,2963.6,11.1884723]
[1766736977596,4.60680891,2964.9,2963.6,14.56274683]
[1766736977837,4.60680891,2964.9,2963.6,11.1884723]
[1766736978200,4.60680891,2964.9,2963.6,14.56274683]
[1766736978400,4.60680891,2964.9,2963.7,3.84]
[1766736979440,3.97427101,2964.8,2963.7,3.84]
[1766736979797,4.60680891,2964.9,2963.8,3.37404683]
[1766736980001,0.885,2964.8,2963.8,3.37404683]
[1766736980203,0.885,2964.8,2963.7,11.18837855]
[1766736981339,4.85927101,2964.8,2963.7,7.21410754]
[1766736981742,3.97427101,2964.8,2963.7,7.21410754]
[1766736981916,8.2321831,2964.8,2963.7,7.21410754]
[1766736982441,4.85927101,2964.8,2963.7,7.21410754]
[1766736983641,8.2321966,2964.8,2963.7,7.21410754]
[1766736983941,8.2321966,2964.8,2963.8,0.03374046]
[1766736984247,8.2321966,2964.8,2963.7,0.0337416]
[1766736985038,0.885,2964.7,2963.7,0.0337416]
[1766736985241,0.82321966,2964.6,2963.7,0.0337416]
[1766736985805,3.97427101,2964.4,2963.8,3.84]
[1766736986206,7.3476574,2964.4,2963.8,3.84]
[1766736986430,3.97427101,2964.4,2963.8,3.84]
[1766736986613,0.73475762,2964.3,2963.8,3.84]
[1766736986821,1.70821966,2964.6,2963.9,0.03373932]
[1766736987207,5.08138887,2964.6,2963.9,0.03373932]
[1766736988644,5.08138887,2964.6,2963.8,3.84]
[1766736988811,9.05565988,2964.6,2963.8,3.84]
[1766736989013,12.42882909,2964.6,2963.8,3.84]
[1766736989230,1.24288291,2964.5,2963.8,3.84]
[1766736989625,3.97427101,2964.4,2963.8,3.84]
[1766736989829,3.97427101,2964.2,2963.8,3.84]
[1766736990228,3.97427101,2964.2,2963.7,3.84]
[1766736990538,7.34773806,2964.4,2963.7,3.84]
[1766736990843,0.8590621,2964.3,2963.7,3.8267]
[1766736992438,0.885,2964.4,2963.7,3.8267]
[1766736993267,4.25839183,2964.4,2963.7,3.8267]
[1766736993543,3.97427101,2964.2,2963.7,3.8267]
[1766736993953,8.23263511,2964.4,2963.7,3.8267]
[1766736994314,1.16059128,2964.3,2963.7,3.8267]
[1766736994515,3.37370534,2964.1,2963.7,3.8267]
[1766736994932,3.97427101,2964.0,2963.7,3.8267]
[1766736995141,3.97427101,2964.0,2963.6,0.001]
[1766736997357,7.34813712,2964.0,2963.6,0.001]
[1766736997545,3.97427101,2963.9,2963.5,0.001]
[1766736997749,0.73481371,2963.8,2963.5,0.001]
[1766736998829,7.34806292,2964.1,2963.5,0.001]
[1766736999137,10.72185483,2964.1,2963.5,0.001]
[1766737000223,0.885,2964.0,2963.5,0.001]
[1766737001662,7.348204,2963.9,2963.5,0.001]
[1766737002332,3.97427101,2963.7,2963.2,0.001]
[1766737002827,1.1607043,2963.8,2963.2,0.001]
[1766737003055,3.97427101,2963.5,2963.2,0.001]
[1766737003450,3.97427101,2963.7,2963.2,0.001]
[1766737003768,0.51349753,2963.6,2963.2,0.001]
[1766737004338,3.88778394,2963.6,2963.2,0.001]
[1766737006064,0.51349753,2963.6,2963.2,0.001]
[1766737006262,1.39849753,2963.6,2963.2,0.001]
[1766737007541,4.77282063,2963.6,2963.2,0.001]
[1766737007748,0.87470916,2963.5,2963.2,0.001]
[1766737012854,8.22343045,2963.5,2963.1,0.001]
[1766737014155,0.87470916,2963.5,2963.1,0.001]
[1766737014858,1.75970916,2963.5,2963.1,0.001]
[1766737015791,5.13413573,2963.5,2963.1,0.001]
[1766737017582,1.75970916,2963.5,2963.1,0.001]
[1766737017762,0.885,2963.5,2963.1,0.001]
[1766737018477,4.25941806,2963.5,2963.1,0.001]
[1766737019089,0.885,2963.5,2963.1,0.001]
[1766737020678,4.25939635,2963.5,2963.1,0.001]
[1766737021085,7.86848948,2963.5,2963.1,0.001]
[1766737021400,3.6091,2963.2,2962.5,3.8277]
[1766737021696,3.6091,2963.2,2962.5,0.001]
[1766737021876,3.6091,2963.2,2962.5,3.6618]
[1766737022698,3.37484391,2963.1,2962.5,3.6618]
[1766737022996,0.885,2963.0,2962.5,3.6618]
[1766737023396,1.49902539,2963.0,2962.5,3.6618]
[1766737026987,3.6091,2962.6,2961.9,3.6618]
[1766737027200,3.6091,2962.6,2961.7,0.001]
[1766737027201,7.58924627,2962.3,2961.7,3.6618]
[1766737027393,3.6091,2962.3,2961.7,3.6618]
[1766737027578,3.37574741,2962.4,2961.7,3.6618]
[1766737027782,0.885,2962.5,2961.9,3.6608]
[1766737027983,1.67194427,2962.5,2961.9,3.6608]
[1766737028820,0.885,2962.6,2961.9,3.6608]
[1766737029006,0.885,2962.6,2962.1,3.6608]
[1766737029301,6.9842236,2962.9,2962.1,3.6608]
[1766737030219,3.6091,2962.8,2961.7,0.001]
[1766737030370,14.10551707,2962.9,2961.7,0.001]
[1766737030371,3.6091,2962.6,2961.7,0.001]
[1766737030998,3.6091,2962.6,2961.7,3.6618]
[1766737033908,0.885,2962.6,2961.9,3.6608]
[1766737034206,4.26045595,2962.6,2961.9,3.6608]
[1766737034576,7.71295595,2962.6,2961.9,3.6608]
[1766737034906,3.4525,2962.5,2961.9,3.6608]
[1766737035104,0.7712956,2962.4,2961.9,3.6608]
[1766737035506,4.2237956,2962.4,2961.9,3.6608]
[1766737036211,0.7712956,2962.4,2961.9,3.6608]
[1766737039692,7.59944583,2962.4,2961.9,3.6608]
[1766737040014,3.4525,2962.4,2961.9,3.6608]
[1766737041613,3.4525,2962.3,2961.7,7.5117]
[1766737041812,4.13531431,2962.2,2961.7,3.8277]
[1766737042013,3.4525,2962.2,2961.6,0.001]
[1766737043697,6.53018325,2962.1,2961.6,0.001]
[1766737044094,3.1542,2962.0,2961.6,0.001]
[1766737045119,6.53377399,2962.3,2961.6,3.685]
[1766737045320,0.002,2962.4,2961.6,3.685]
[1766737045521,0.886,2962.3,2961.8,3.684]
[1766737046219,0.886,2962.7,2962.3,3.684]
[1766737047320,6.50397172,2962.9,2962.3,3.684]
[1766737047522,0.886,2962.9,2962.3,3.684]
[1766737047926,0.886,2963.0,2962.3,3.684]
[1766737049723,0.002,2962.7,2962.3,3.684]
[1766737050211,0.002,2962.7,2962.3,3.65190793]
[1766737051999,0.002,2962.7,2962.1,0.03375983]
[1766737052199,0.002,2962.7,2961.9,0.03376211]
[1766737053228,0.002,2962.7,2962.0,3.375991]
[1766737053428,0.002,2962.7,2962.1,0.03375983]
[1766737054919,0.002,2962.7,2961.8,0.1446]
[1766737055121,0.002,2962.7,2961.9,3.34406173]
[1766737055740,0.002,2962.7,2962.0,3.37609257]
[1766737056120,0.002,2962.7,2962.1,0.03375983]
[1766737056436,0.002,2962.7,2962.0,0.03376097]
[1766737058327,0.002,2962.7,2961.9,3.37616028]
[1766737059040,0.002,2962.7,2961.9,3.37621121]
[1766737059244,0.002,2962.7,2962.0,0.03376097]
[1766737060751,0.002,2962.7,2962.0,4.01390724]
[1766737061250,0.002,2962.7,2962.1,3.37598325]
[1766737061410,0.002,2962.7,2962.2,0.03375869]
[1766737062337,4.21467895,2963.5,2962.3,4.01390382]
[1766737062640,0.886,2963.4,2962.3,4.01390382]
[1766737062943,0.51006789,2963.3,2962.2,0.1446]
[1766737063132,3.88474333,2963.3,2962.2,3.52038938]
[1766737063517,7.25941877,2963.3,2962.2,0.1446]
[1766737063723,0.002,2962.7,2962.2,0.1446]
[1766737064038,0.002,2962.7,2962.0,0.1446]
[1766737064541,0.002,2962.7,2962.1,0.03375983]
[1766737065110,0.002,2962.7,2962.0,0.1446]
[1766737069249,0.002,2962.7,2961.9,4.26213427]
[1766737071045,0.002,2962.7,2961.9,0.001]
[1766737080062,3.98327663,2962.4,2961.9,0.001]
[1766737080224,0.886,2962.3,2961.9,0.001]
[1766737081327,0.002,2962.7,2961.9,0.001]
[1766737081328,0.886,2962.4,2961.9,0.001]
[1766737081742,0.42615944,2962.3,2961.9,0.001]
[1766737082860,4.26143722,2962.6,2961.9,0.001]
[1766737083233,3.37735422,2962.7,2962.0,3.98327663]
[1766737083546,0.002,2962.7,2962.2,3.98327663]
[1766737085040,0.886,2963.0,2962.4,3.98327663]
[1766737085735,3.37507172,2962.9,2962.2,3.98327663]
[1766737086136,3.37507172,2962.9,2962.4,3.98327663]
[1766737087864,3.37507172,2962.9,2961.9,0.03476211]
[1766737088078,4.25511078,2962.9,2962.2,3.98327663]
[1766737089073,4.25511078,2962.9,2962.3,0.03375755]
[1766737089779,4.26091952,2963.1,2962.4,3.98327663]
[1766737089957,9.67703904,2963.1,2962.4,7.25737663]
[1766737090277,2.0218,2963.0,2962.4,3.2741]
[1766737091072,0.002,2962.9,2962.4,3.2741]
[1766737098675,0.002,2962.9,2962.4,3.2751]
[1766737099277,0.96796915,2962.9,2962.4,3.2751]
[1766737100290,0.002,2962.9,2962.4,3.2751]
[1766737103788,0.002,2962.9,2962.4,3.98427663]
[1766737104091,0.002,2962.9,2962.5,2.9539]
[1766737107460,1.7107,2962.9,2962.4,0.001]
[1766737108411,5.08579042,2962.9,2962.4,0.001]
[1766737108566,0.59717904,2962.8,2962.4,0.001]
[1766737109596,0.002,2962.9,2962.4,2.9549]
[1766737109799,4.26307894,2962.9,2962.4,2.9549]
[1766737114102,5.85227894,2962.9,2962.4,2.9549]
[1766737114598,5.85227894,2962.9,2962.4,0.001]
[1766737117508,7.63815788,2962.9,2962.4,0.001]
[1766737117715,1.5461,2962.7,2962.0,2.872]
[1766737118777,4.90781348,2962.6,2962.0,2.873]
[1766737120885,1.5324,2962.6,2962.0,2.873]
[1766737121986,3.37541956,2962.6,2962.0,0.001]
[1766737122386,4.13900348,2962.8,2962.0,0.001]
[1766737122387,3.37534425,2962.7,2962.0,0.001]
[1766737122717,4.21557902,2962.7,2962.0,0.001]
[1766737123507,4.26315122,2962.9,2962.1,3.98327663]
[1766737123712,0.886,2962.8,2962.1,3.98327663]
[1766737124396,4.26120881,2962.8,2962.1,3.98327663]
[1766737125183,4.26120881,2962.8,2962.0,0.03476097]
[1766737125389,0.42632088,2962.7,2962.0,0.001]
[1766737126189,0.886,2962.8,2962.0,0.001]
[1766737126923,4.26120382,2962.8,2962.0,0.001]
[1766737127108,3.37520382,2962.8,2962.0,0.001]
[1766737127308,3.37720382,2962.8,2962.0,0.001]
[1766737127515,3.37720382,2962.8,2962.0,0.03476097]
[1766737128219,4.14122084,2962.8,2962.0,0.03476097]
[1766737129202,4.14122084,2962.8,2962.0,0.001]
[1766737130706,5.02722084,2962.8,2962.0,0.001]
[1766737130906,8.40242466,2962.8,2962.0,0.001]
[1766737141408,5.02722084,2962.8,2962.0,0.001]
[1766737141605,0.84043331,2962.7,2962.0,0.001]
[1766737141809,1.72643331,2962.7,2962.0,0.001]
[1766737142009,5.10178454,2962.7,2962.0,0.001]
[1766737142535,0.886,2962.6,2962.0,0.001]
[1766737142839,3.37722857,2962.8,2962.0,0.001]
[1766737143039,4.26322857,2962.8,2962.0,0.001]
[1766737144330,5.02725085,2962.8,2962.0,0.001]
[1766737146039,0.886,2962.7,2962.0,0.001]
[1766737146539,4.26131739,2962.7,2962.0,0.001]
[1766737149246,0.886,2962.7,2962.0,0.001]
[1766737150046,0.76602228,2962.8,2962.0,0.001]
[1766737150250,0.002,2962.8,2962.0,0.001]
[1766737150441,3.37720407,2962.8,2962.0,0.001]
[1766737153349,0.002,2962.8,2962.0,4.0167378]
[1766737155227,0.002,2962.8,2962.0,3.98297683]
[1766737155648,0.7660069,2962.8,2962.0,0.001]
[1766737156022,1.0961,2962.7,2961.6,2.6175]
[1766737158126,1.0688,2962.5,2961.6,2.6175]
[1766737158340,1.9548,2962.4,2961.6,2.6175]
[1766737158524,0.19548,2962.3,2961.6,2.6175]
[1766737158725,1.26428,2962.3,2961.6,2.6175]
[1766737159930,1.26428,2962.3,2961.6,0.001]
[1766737160127,1.0524,2962.1,2961.6,0.001]
[1766737162152,6.75219446,2962.0,2961.6,0.001]
[1766737162347,1.66645945,2961.9,2961.6,0.001]
[1766737162728,1.66645945,2961.9,2961.6,2.6175]
[1766737164462,5.04268591,2961.9,2961.6,2.6175]
[1766737165260,3.37613467,2962.0,2961.7,2.6165]
[1766737165462,0.19548,2962.3,2961.7,2.6165]
[1766737165758,2.4678,2962.7,2961.9,2.6165]
[1766737165759,3.37541348,2962.6,2961.9,2.6165]
[1766737166365,0.002,2962.7,2961.9,2.6165]
[1766737166839,2.4678,2962.7,2961.9,2.6165]
[1766737167169,2.4658,2962.5,2961.9,2.6165]
[1766737167655,2.4658,2962.5,2961.6,0.001]
[1766737167859,2.4658,2962.5,2961.7,2.6165]
[1766737168061,2.4658,2962.5,2961.6,0.001]
[1766737168670,2.4658,2962.3,2961.6,0.001]
[1766737168976,3.38750827,2962.2,2961.6,0.001]
[1766737169530,3.38750827,2962.2,2961.6,2.6175]
[1766737170772,2.4658,2962.0,2961.6,0.001]
[1766737172674,3.37621121,2961.9,2961.6,0.001]
[1766737174009,7.34022508,2961.9,2961.6,0.001]
[1766737174980,3.96401387,2961.9,2961.6,2.6175]
[1766737175163,3.96601387,2961.9,2961.6,2.6175]
[1766737177480,7.34222508,2961.9,2961.6,0.001]
[1766737177682,3.20002251,2961.8,2961.4,0.886]
[1766737177866,3.20002251,2961.8,2961.3,2.6175]
[1766737178063,3.37821121,2961.9,2961.3,2.6175]